fUST/lending_fUST_20250715
["ID","MTS","AMOUNT","RATE_DAILY","PERIOD"]
[372263691,1752568249407,-460.0,0.00019452,2]
[372263692,1752568249416,-460.0,0.00019452,2]
[372263693,1752568249425,-460.0,0.00019452,2]
[372263694,1752568249434,-460.0,0.00019452,2]
[372263695,1752568249444,-460.0,0.00019452,2]
[372263696,1752568249453,-460.0,0.00019452,2]
[372263697,1752568249462,-460.0,0.00019452,2]
[372263698,1752568249471,-466.09007482,0.00019452,2]
[372263699,1752568249481,-460.0,0.00019452,2]
[372263700,1752568249490,-460.0,0.00019452,2]
[372263701,1752568249499,-507.02,0.00019452,2]
[372263702,1752568249509,-460.0,0.00019452,2]
[372263703,1752568249519,-460.0,0.00019452,2]
[372263704,1752568249529,-199.98912632,0.00019452,2]
[372263705,1752568249539,-460.0,0.00019452,2]
[372263706,1752568249548,-460.0,0.00019452,2]
[372263707,1752568249558,-460.0,0.00019452,2]
[372263708,1752568249567,-460.0,0.00019452,2]
[372263709,1752568249577,-460.0,0.00019452,2]
[372263710,1752568249587,-460.0,0.00019452,2]
[372263711,1752568249596,-460.0,0.00019452,2]
[372263712,1752568249605,-460.0,0.00019452,2]
[372263713,1752568249615,-460.0,0.00019452,2]
[372263714,1752568249625,-460.0,0.00019452,2]
[372263715,1752568249635,-460.0,0.00019452,2]
[372263716,1752568249644,-460.0,0.00019452,2]
[372263717,1752568249653,-460.0,0.00019452,2]
[372263718,1752568249662,-797.85,0.00019452,2]
[372263719,1752568249672,-466.08068285,0.00019452,2]
[372263720,1752568249681,-460.0,0.00019452,2]
[372263721,1752568249691,-460.0,0.00019452,2]
[372263722,1752568249700,-460.0,0.00019452,2]
[372263723,1752568249710,-526.00692046,0.00019452,2]
[372263724,1752568249719,-460.0,0.00019452,2]
[372263725,1752568249729,-460.0,0.00019452,2]
[372263726,1752568249739,-460.0,0.00019452,2]
[372263727,1752568249748,-460.0,0.00019452,2]
[372263728,1752568249758,-1013.19,0.00019452,2]
[372263729,1752568249768,-460.0,0.00019452,2]
[372263730,1752568249778,-460.0,0.00019452,2]
[372263731,1752568249787,-460.0,0.00019452,2]
[372263732,1752568249797,-460.0,0.00019452,2]
[372263733,1752568249806,-489.25301117,0.00019452,2]
[372263734,1752568249815,-460.0,0.00019452,2]
[372263735,1752568249826,-460.0,0.00019452,2]
[372263736,1752568249835,-460.0,0.00019452,2]
[372263737,1752568249845,-460.0,0.00019452,2]
[372263738,1752568249854,-460.0,0.00019452,2]
[372263739,1752568249864,-460.0,0.00019452,2]
[372263740,1752568249873,-460.0,0.00019452,2]
[372263741,1752568249965,-460.0,0.00019452,2]
[372263742,1752568249976,-460.0,0.00019452,2]
[372263743,1752568249986,-460.0,0.00019452,2]
[372263744,1752568249995,-460.0,0.00019452,2]
[372263745,1752568250005,-2728.73,0.00019452,2]
[372263746,1752568250015,-460.0,0.00019452,2]
[372263747,1752568250025,-460.0,0.00019452,2]
[372263748,1752568250035,-460.0,0.00019452,2]
[372263749,1752568250044,-460.0,0.00019452,2]
[372263750,1752568250054,-496.29,0.00019452,2]
[372263751,1752568250063,-460.0,0.00019452,2]
[372263752,1752568250073,-460.0,0.00019452,2]
[372263753,1752568250084,-1064.98,0.00019452,2]
[372263754,1752568250094,-462.88990773,0.00019452,2]
[372263755,1752568250104,-460.0,0.00019452,2]
[372263756,1752568250114,-460.0,0.00019452,2]
[372263757,1752568250123,-409.92677761,0.00019452,2]
[372263758,1752568250133,-460.0,0.00019452,2]
[372263759,1752568250143,-460.0,0.00019452,2]
[372263760,1752568250154,-460.0,0.00019452,2]
[372263761,1752568250163,-460.0,0.00019452,2]
[372263762,1752568250173,-460.0,0.00019452,2]
[372263763,1752568250183,-460.74461743,0.00019452,2]
[372263764,1752568250192,-460.0,0.00019452,2]
[372263765,1752568250202,-484.92541057,0.00019452,2]
[372263766,1752568250211,-460.0,0.00019452,2]
[372263767,1752568250221,-460.0,0.00019452,2]
[372263768,1752568250231,-460.0,0.00019452,2]
[372263769,1752568250241,-791.68,0.00019452,2]
[372263770,1752568250251,-460.0,0.00019452,2]
[372263771,1752568250260,-460.0,0.00019452,2]
[372263772,1752568250271,-460.0,0.00019452,2]
[372263773,1752568250281,-575.04756073,0.00019452,2]
[372263774,1752568250291,-460.0,0.00019452,2]
[372263775,1752568250300,-460.0,0.00019452,2]
[372263776,1752568250310,-460.0,0.00019452,2]
[372263777,1752568250320,-727.92,0.00019452,2]
[372263778,1752568250330,-460.0,0.00019452,2]
[372263779,1752568250340,-667.4,0.00019452,2]
[372263780,1752568250350,-477.09184766,0.00019452,2]
[372263781,1752568250359,-7923.04,0.00019452,2]
[372263782,1752568250369,-1767.68,0.00019452,2]
[372263783,1752568250378,-460.0,0.00019452,2]
[372263784,1752568250388,-460.0,0.00019452,2]
[372263785,1752568250398,-463.07366615,0.00019452,2]
[372263786,1752568250407,-460.0,0.00019452,2]
[372263787,1752568250417,-460.0,0.00019452,2]
[372263788,1752568250427,-360.0,0.00019452,2]
[372263789,1752568250437,-7077.23,0.00019452,2]
[372263790,1752568250446,-1795.0,0.00019452,2]
[372263791,1752568250456,-460.0,0.00019452,2]
[372263792,1752568250466,-2005.5,0.00019452,2]
[372263793,1752568250475,-460.0,0.00019452,2]
[372263794,1752568250486,-460.0,0.00019452,2]
[372263795,1752568250495,-460.0,0.00019452,2]
[372263796,1752568250505,-460.0,0.00019452,2]
[372263797,1752568250516,-460.0,0.00019452,2]
[372263798,1752568250525,-460.0,0.00019452,2]
[372263799,1752568250534,-460.0,0.00019452,2]
[372263800,1752568250544,-460.0,0.00019452,2]
[372263801,1752568250553,-460.0,0.00019452,2]
[372263802,1752568250562,-460.0,0.00019452,2]
[372263803,1752568250572,-460.0,0.00019452,2]
[372263804,1752568250582,-468.20926772,0.00019452,2]
[372263805,1752568250592,-460.0,0.00019452,2]
[372263806,1752568250602,-460.0,0.00019452,2]
[372263807,1752568250612,-460.0,0.00019452,2]
[372263808,1752568250622,-438.18578649,0.00019452,2]
[372263809,1752568250632,-460.0,0.00019452,2]
[372263810,1752568250642,-460.0,0.00019452,2]
[372263811,1752568250652,-460.0,0.00019452,2]
[372263812,1752568250662,-460.0,0.00019452,2]
[372263813,1752568250671,-460.0,0.00019452,2]
[372263814,1752568250681,-353.47307221,0.00019452,2]
[372263815,1752568250690,-1108.93,0.00019452,2]
[372263816,1752568250701,-460.0,0.00019452,2]
[372263817,1752568250710,-2528.48,0.00019452,2]
[372263818,1752568250720,-460.0,0.00019452,2]
[372263819,1752568250729,-460.0,0.00019452,2]
[372263820,1752568250739,-460.0,0.00019452,2]
[372263821,1752568250749,-463.59562676,0.00019452,2]
[372263822,1752568250759,-460.0,0.00019452,2]
[372263823,1752568250769,-513.91435364,0.00019452,2]
[372263824,1752568250779,-5262.85,0.00019452,2]
[372263825,1752568250789,-649.45,0.00019452,2]
[372263826,1752568250798,-460.0,0.00019452,2]
[372263827,1752568250808,-460.0,0.00019452,2]
[372263828,1752568250817,-460.0,0.00019452,2]
[372263829,1752568250827,-460.42993642,0.00019452,2]
[372263830,1752568250836,-460.0,0.00019452,2]
[372263831,1752568250846,-460.0,0.00019452,2]
[372263832,1752568250855,-516.15,0.00019452,2]
[372263833,1752568250864,-463.81249372,0.00019452,2]
[372263834,1752568250874,-460.0,0.00019452,2]
[372263835,1752568250884,-509.44,0.00019452,2]
[372263836,1752568250893,-460.0,0.00019452,2]
[372263837,1752568250904,-935.3,0.00019452,2]
[372263838,1752568250917,-460.0,0.00019452,2]
[372263839,1752568250926,-1072.07,0.00019452,2]
[372263840,1752568250936,-460.0,0.00019452,2]
[372263841,1752568250945,-460.0,0.00019452,2]
[372263842,1752568250956,-460.0,0.00019452,2]
[372263843,1752568250966,-460.0,0.00019452,2]
[372263844,1752568250976,-460.0,0.00019452,2]
[372263845,1752568250987,-460.0,0.00019452,2]
[372263846,1752568250996,-962.23,0.00019452,2]
[372263847,1752568251007,-460.0,0.00019452,2]
[372263848,1752568251017,-460.0,0.00019452,2]
[372263849,1752568251027,-1205.09,0.00019452,2]
[372263850,1752568251036,-460.0,0.00019452,2]
[372263851,1752568251046,-8553.46,0.00019452,2]
[372263852,1752568251055,-2434.39,0.00019452,2]
[372263853,1752568251065,-460.0,0.00019452,2]
[372263854,1752568251076,-460.0,0.00019452,2]
[372263855,1752568251085,-460.0,0.00019452,2]
[372263856,1752568251095,-460.0,0.00019452,2]
[372263857,1752568251104,-460.0,0.00019452,2]
[372263858,1752568251114,-460.0,0.00019452,2]
[372263859,1752568251123,-460.0,0.00019452,2]
[372263860,1752568251133,-865.81,0.00019452,2]
[372263861,1752568251142,-460.0,0.00019452,2]
[372263862,1752568251152,-592.14,0.00019452,2]
[372263863,1752568251161,-460.0,0.00019452,2]
[372263864,1752568251170,-460.0,0.00019452,2]
[372263865,1752568251180,-460.0,0.00019452,2]
[372263866,1752568251190,-461.2302187,0.00019452,2]
[372263867,1752568251200,-498.44211083,0.00019452,2]
[372263868,1752568251209,-500.0,0.00019452,2]
[372263869,1752568251219,-460.0,0.00019452,2]
[372263870,1752568251229,-924.63,0.00019452,2]
[372263871,1752568251239,-616.25,0.00019452,2]
[372263872,1752568251249,-4180.58,0.00019452,2]
[372263873,1752568251258,-460.0,0.00019452,2]
[372263874,1752568251269,-194.80044835,0.00019452,2]
[372263875,1752568251279,-460.0,0.00019452,2]
[372263876,1752568251288,-460.0,0.00019452,2]
[372263877,1752568251298,-1533.03,0.00019452,2]
[372263878,1752568251308,-336.67,0.00019452,2]
[372263879,1752568251317,-460.0,0.00019452,2]
[372263880,1752568251326,-460.0,0.00019452,2]
[372263881,1752568251336,-460.0,0.00019452,2]
[372263882,1752568251345,-462.61295759,0.00019452,2]
[372263883,1752568251355,-688.33,0.00019452,2]
[372263884,1752568251364,-460.0,0.00019452,2]
[372263885,1752568251374,-648.63,0.00019452,2]
[372263886,1752568251383,-886.34,0.00019452,2]
[372263887,1752568251393,-966.64,0.00019452,2]
[372263888,1752568251403,-460.0,0.00019452,2]
[372263889,1752568251412,-460.0,0.00019452,2]
[372263890,1752568251422,-460.0,0.00019452,2]
[372263891,1752568251431,-460.0,0.00019452,2]
[372263892,1752568251441,-460.0,0.00019452,2]
[372263893,1752568251451,-460.0,0.00019452,2]
[372263894,1752568251460,-460.0,0.00019452,2]
[372263895,1752568251469,-1951.24,0.00019452,2]
[372263896,1752568251479,-460.0,0.00019452,2]
[372263897,1752568251489,-460.0,0.00019452,2]
[372263898,1752568251499,-689.19,0.00019452,2]
[372263899,1752568251508,-460.0,0.00019452,2]
[372263900,1752568251519,-460.0,0.00019452,2]
[372263901,1752568251529,-460.0,0.00019452,2]
[372263902,1752568251539,-460.0,0.00019452,2]
[372263903,1752568251549,-460.0,0.00019452,2]
[372263904,1752568251558,-460.0,0.00019452,2]
[372263905,1752568251568,-460.0,0.00019452,2]
[372263906,1752568251578,-460.0,0.00019452,2]
[372263907,1752568251669,-460.0,0.00019452,2]
[372263908,1752568251678,-460.0,0.00019452,2]
[372263909,1752568251688,-2572.3,0.00019452,2]
[372263910,1752568251697,-460.0,0.00019452,2]
[372263911,1752568251707,-460.0,0.00019452,2]
[372263912,1752568251716,-460.0,0.00019452,2]
[372263913,1752568251725,-518.31,0.00019452,2]
[372263914,1752568251735,-460.0,0.00019452,2]
[372263915,1752568251744,-460.0,0.00019452,2]
[372263916,1752568251753,-460.0,0.00019452,2]
[372263917,1752568251763,-460.0,0.00019452,2]
[372263918,1752568251774,-266.41380989,0.00019452,2]
[372263919,1752568251783,-460.0,0.00019452,2]
[372263920,1752568251792,-460.0,0.00019452,2]
[372263921,1752568251802,-460.0,0.00019452,2]
[372263922,1752568251811,-1848.23,0.00019452,2]
[372263923,1752568251821,-922.11,0.00019452,2]
[372263924,1752568251830,-477.88,0.00019452,2]
[372263925,1752568251840,-460.0,0.00019452,2]
[372263926,1752568251850,-460.0,0.00019452,2]
[372263927,1752568251859,-7815.44,0.00019452,2]
[372263928,1752568251869,-3651.67,0.00019452,2]
[372263929,1752568251878,-460.0,0.00019452,2]
[372263930,1752568251888,-1098.55,0.00019452,2]
[372263931,1752568251897,-460.0,0.00019452,2]
[372263932,1752568251907,-460.0,0.00019452,2]
[372263933,1752568251920,-600.27,0.00019452,2]
[372263934,1752568251929,-460.0,0.00019452,2]
[372263935,1752568251939,-175.43802794,0.00019452,2]
[372263936,1752568251948,-500.0,0.00019473,2]
[372263937,1752568251958,-500.0,0.00019473,2]
[372263938,1752568251968,-500.0,0.00019473,2]
[372263939,1752568251978,-500.0,0.00019473,2]
[372263940,1752568251988,-500.0,0.00019473,2]
[372263941,1752568251998,-500.0,0.00019473,2]
[372263942,1752568252007,-500.0,0.00019473,2]
[372263943,1752568252018,-500.0,0.00019473,2]
[372263944,1752568252028,-500.0,0.00019473,2]
[372263945,1752568252037,-500.69557529,0.00019473,2]
[372263946,1752568252046,-500.0,0.00019473,2]
[372263947,1752568252056,-500.0,0.00019473,2]
[372263948,1752568252066,-500.0,0.00019473,2]
[372263949,1752568252075,-500.93469637,0.00019473,2]
[372263950,1752568252084,-500.0,0.00019473,2]
[372263951,1752568252093,-500.0,0.00019473,2]
[372263952,1752568252103,-159.05421072,0.00019473,2]
[372263953,1752568252113,-152.06036481,0.00019473,2]
[372263954,1752568252122,-378.73526663,0.00019473,2]
[372263955,1752568252132,-500.0,0.00019473,2]
[372263956,1752568252142,-500.0,0.00019473,2]
[372263957,1752568252152,-500.0,0.00019473,2]
[372263958,1752568252162,-500.0,0.00019473,2]
[372263959,1752568252172,-636.39659186,0.00019473,2]
[372263960,1752568252182,-500.0,0.00019473,2]
[372263961,1752568252192,-500.0,0.00019473,2]
[372263962,1752568252202,-500.0,0.00019473,2]
[372263963,1752568252211,-500.0,0.00019473,2]
[372263964,1752568252221,-500.0,0.00019473,2]
[372263965,1752568252232,-518.85288846,0.00019473,2]
[372263966,1752568252241,-501.32261284,0.00019473,2]
[372263967,1752568252250,-500.0,0.00019473,2]
[372263968,1752568252260,-158.47430899,0.00019473,2]
[372263969,1752568252272,-500.0,0.00019473,2]
[372263970,1752568252281,-500.0,0.00019473,2]
[372263971,1752568252291,-500.0,0.00019473,2]
[372263972,1752568252301,-504.66535966,0.00019473,2]
[372263973,1752568252311,-153.66628788,0.00019473,2]
[372263974,1752568252320,-500.0,0.00019473,2]
[372263975,1752568252330,-500.0,0.00019473,2]
[372263976,1752568252340,-500.0,0.00019473,2]
[372263977,1752568252349,-500.0,0.00019473,2]
[372263978,1752568252359,-501.77846167,0.00019473,2]
[372263979,1752568252368,-500.0,0.00019473,2]
[372263980,1752568252377,-500.0,0.00019473,2]
[372263981,1752568252387,-500.0,0.00019473,2]
[372263982,1752568252396,-500.0,0.00019473,2]
[372263983,1752568252406,-500.0,0.00019473,2]
[372263984,1752568252415,-153.07942448,0.00019473,2]
[372263985,1752568252425,-501.47511624,0.00019473,2]
[372263986,1752568252434,-500.0,0.00019473,2]
[372263987,1752568252444,-1188.0,0.00019479,2]
[372263988,1752568252453,-1132.0,0.00019479,2]
[372263989,1752568252463,-413.59765082,0.00019479,2]
[372263990,1752568252473,-357.23022373,0.00019479,2]
[372263991,1752568252483,-151.0,0.000195,2]
[372263992,1752568252493,-170.87134607,0.000195,2]
[372263993,1752568252502,-1188.0,0.00019507,2]
[372263994,1752568252512,-1132.0,0.00019507,2]
[372263995,1752568252524,-151.0,0.00019507,2]
[372263996,1752568252533,-500.0,0.0001952,2]
[372263997,1752568252543,-500.0,0.0001952,2]
[372263998,1752568252553,-354.66525555,0.0001952,2]
[372263999,1752568252562,-1074.35622864,0.00019521,2]
[372264000,1752568252572,-1000.0,0.00019521,2]
[372264001,1752568252582,-703.46871544,0.00019521,2]
[372264002,1752568252591,-1001.99962256,0.00019521,2]
[372264003,1752568252601,-500.77249994,0.00019521,2]
[372264004,1752568252611,-500.0,0.00019521,2]
[372264005,1752568252621,-820.43667398,0.00019521,2]
[372264006,1752568252630,-1000.0,0.00019521,2]
[372264007,1752568252639,-1000.0,0.00019521,2]
[372264008,1752568252649,-1000.0,0.00019521,2]
[372264009,1752568252658,-504.19599977,0.00019521,2]
[372264010,1752568252667,-1000.0,0.00019521,2]
[372264011,1752568252688,-1002.24581716,0.00019521,2]
[372264012,1752568252702,-51972.41514368,0.00019529,2]
[372264013,1752568252711,-151.0,0.00019529,2]
[372264014,1752568252721,-154.094875,0.00019529,2]
[372264015,1752568252730,-1188.0,0.00019534,2]
[372264016,1752568252740,-1132.0,0.00019534,2]
[372264017,1752568252750,-500.0,0.00019547,2]
[372264018,1752568252759,-1188.0,0.00019562,2]
[372264019,1752568252770,-1132.0,0.00019562,2]
[372264020,1752568252779,-1188.0,0.00019589,2]
[372264021,1752568252789,-1132.0,0.00019589,2]
[372264022,1752568252799,-151.0,0.000196,2]
[372264023,1752568252808,-1188.0,0.00019616,2]
[372264024,1752568252818,-1132.0,0.00019616,2]
[372264025,1752568252827,-12039.6221253,0.00019624,2]
[372264026,1752568252836,-151.0,0.00019626,2]
[372264027,1752568252846,-157.333192,0.00019626,2]
[372264028,1752568252855,-157.333192,0.00019626,2]
[372264029,1752568252866,-4754.98252433,0.00019626,2]
[372264030,1752568252876,-1188.0,0.00019644,2]
[372264031,1752568252885,-1132.0,0.00019644,2]
[372264032,1752568252895,-1188.0,0.00019671,2]
[372264033,1752568252905,-1132.0,0.00019671,2]
[372264034,1752568252918,-1188.0,0.00019699,2]
[372264035,1752568252927,-1132.0,0.00019699,2]
[372264036,1752568252937,-151.0,0.00019699,2]
[372264037,1752568252947,-151.0,0.000197,2]
[372264038,1752568252957,-151.0,0.000197,2]
[372264039,1752568252967,-502.41729543,0.00019721,2]
[372264040,1752568252977,-1000.0,0.00019721,2]
[372264041,1752568252987,-470.50981731,0.00019721,2]
[372264042,1752568252998,-516.39731397,0.00019721,2]
[372264043,1752568253008,-504.44819473,0.00019721,2]
[372264044,1752568253017,-151.0,0.00019721,2]
[372264045,1752568253027,-151.0,0.00019721,2]
[372264046,1752568253036,-1188.0,0.00019726,2]
[372264047,1752568253046,-1132.0,0.00019726,2]
[372264048,1752568253056,-151.0,0.00019726,2]
[372264049,1752568253066,-444.45244042,0.00019726,2]
[372264050,1752568253076,-472.51171035,0.00019726,2]
[372264051,1752568253086,-460.0,0.00019726,2]
[372264052,1752568253097,-460.0,0.00019726,2]
[372264053,1752568253106,-460.0,0.00019726,2]
[372264054,1752568253116,-460.0,0.00019726,2]
[372264055,1752568253126,-460.0,0.00019726,2]
[372264056,1752568253135,-460.0,0.00019726,2]
[372264057,1752568253145,-460.0,0.00019726,2]
[372264058,1752568253154,-460.0,0.00019726,2]
[372264059,1752568253164,-460.0,0.00019726,2]
[372264060,1752568253258,-460.0,0.00019726,2]
[372264061,1752568253269,-460.0,0.00019726,2]
[372264062,1752568253279,-460.0,0.00019726,2]
[372264063,1752568253290,-460.0,0.00019726,2]
[372264064,1752568253300,-462.17755561,0.00019726,2]
[372264065,1752568253310,-460.0,0.00019726,2]
[372264066,1752568253319,-460.0,0.00019726,2]
[372264067,1752568253328,-460.0,0.00019726,2]
[372264068,1752568253338,-460.0,0.00019726,2]
[372264069,1752568253348,-181.86637703,0.00019726,2]
[372264070,1752568253358,-460.0,0.00019726,2]
[372264071,1752568253368,-460.0,0.00019726,2]
[372264072,1752568253377,-304.0587969,0.00019726,2]
[372264073,1752568253388,-460.0,0.00019726,2]
[372264074,1752568253397,-460.0,0.00019726,2]
[372264075,1752568253408,-460.0,0.00019726,2]
[372264076,1752568253418,-460.0,0.00019726,2]
[372264077,1752568253428,-460.0,0.00019726,2]
[372264078,1752568253438,-460.0,0.00019726,2]
[372264079,1752568253449,-466.83191317,0.00019726,2]
[372264080,1752568253459,-460.0,0.00019726,2]
[372264081,1752568253468,-580.02764968,0.00019726,2]
[372264082,1752568253478,-460.0,0.00019726,2]
[372264083,1752568253488,-460.0,0.00019726,2]
[372264084,1752568253498,-460.0,0.00019726,2]
[372264085,1752568253507,-152.18364776,0.00019726,2]
[372264086,1752568253517,-466.48360078,0.00019726,2]
[372264087,1752568253526,-460.0,0.00019726,2]
[372264088,1752568253536,-460.0,0.00019726,2]
[372264089,1752568253545,-460.0,0.00019726,2]
[372264090,1752568253555,-460.0,0.00019726,2]
[372264091,1752568253564,-460.0,0.00019726,2]
[372264092,1752568253574,-460.0,0.00019726,2]
[372264093,1752568253584,-463.19108857,0.00019726,2]
[372264094,1752568253593,-460.0,0.00019726,2]
[372264095,1752568253603,-460.0,0.00019726,2]
[372264096,1752568253613,-460.0,0.00019726,2]
[372264097,1752568253623,-460.0,0.00019726,2]
[372264098,1752568253633,-511.11175927,0.00019726,2]
[372264099,1752568253643,-460.0,0.00019726,2]
[372264100,1752568253653,-463.11174211,0.00019726,2]
[372264101,1752568253665,-474.04,0.00019726,2]
[372264102,1752568253678,-460.0,0.00019726,2]
[372264103,1752568253688,-460.0,0.00019726,2]
[372264104,1752568253698,-460.0,0.00019726,2]
[372264105,1752568253708,-460.0,0.00019726,2]
[372264106,1752568253718,-460.0,0.00019726,2]
[372264107,1752568253728,-460.0,0.00019726,2]
[372264108,1752568253737,-460.0,0.00019726,2]
[372264109,1752568253747,-460.0,0.00019726,2]
[372264110,1752568253757,-460.0,0.00019726,2]
[372264111,1752568253767,-945.03,0.00019726,2]
[372264112,1752568253777,-460.0,0.00019726,2]
[372264113,1752568253787,-460.0,0.00019726,2]
[372264114,1752568253797,-463.23115986,0.00019726,2]
[372264115,1752568253807,-460.0,0.00019726,2]
[372264116,1752568253817,-460.0,0.00019726,2]
[372264117,1752568253827,-460.0,0.00019726,2]
[372264118,1752568253836,-460.0,0.00019726,2]
[372264119,1752568253846,-460.0,0.00019726,2]
[372264120,1752568253856,-641.07,0.00019726,2]
[372264121,1752568253865,-460.0,0.00019726,2]
[372264122,1752568253875,-460.0,0.00019726,2]
[372264123,1752568253885,-460.0,0.00019726,2]
[372264124,1752568253895,-460.0,0.00019726,2]
[372264125,1752568253905,-460.0,0.00019726,2]
[372264126,1752568253927,-460.0,0.00019726,2]
[372264127,1752568253937,-542.44,0.00019726,2]
[372264128,1752568253946,-460.0,0.00019726,2]
[372264129,1752568253956,-392.54927042,0.00019726,2]
[372264130,1752568253966,-460.0,0.00019726,2]
[372264131,1752568253976,-209.79502532,0.00019726,2]
[372264132,1752568253991,-274.58795901,0.00019726,2]
[372264133,1752568254012,-460.0,0.00019726,2]
[372264134,1752568254024,-460.0,0.00019726,2]
[372264135,1752568254035,-460.0,0.00019726,2]
[372264136,1752568254045,-460.0,0.00019726,2]
[372264137,1752568254055,-460.0,0.00019726,2]
[372264138,1752568254066,-460.0,0.00019726,2]
[372264139,1752568254075,-460.0,0.00019726,2]
[372264140,1752568254085,-460.0,0.00019726,2]
[372264141,1752568254095,-460.0,0.00019726,2]
[372264142,1752568254104,-506.3302443,0.00019726,2]
[372264143,1752568254114,-464.63392845,0.00019726,2]
[372264144,1752568254123,-460.0,0.00019726,2]
[372264145,1752568254133,-517.74,0.00019726,2]
[372264146,1752568254143,-312.13819675,0.00019726,2]
[372264147,1752568254153,-460.0,0.00019726,2]
[372264148,1752568254164,-460.0,0.00019726,2]
[372264149,1752568254174,-460.0,0.00019726,2]
[372264150,1752568254184,-460.0,0.00019726,2]
[372264151,1752568254194,-777.99,0.00019726,2]
[372264152,1752568254204,-460.0,0.00019726,2]
[372264153,1752568254214,-460.0,0.00019726,2]
[372264154,1752568254223,-460.0,0.00019726,2]
[372264155,1752568254233,-460.0,0.00019726,2]
[372264156,1752568254243,-464.72,0.00019726,2]
[372264157,1752568254252,-460.0,0.00019726,2]
[372264158,1752568254262,-151.0,0.00019726,2]
[372264159,1752568254273,-460.0,0.00019726,2]
[372264160,1752568254283,-592.01,0.00019726,2]
[372264161,1752568254293,-460.0,0.00019726,2]
[372264162,1752568254303,-460.0,0.00019726,2]
[372264163,1752568254313,-460.0,0.00019726,2]
[372264164,1752568254323,-460.0,0.00019726,2]
[372264165,1752568254332,-460.0,0.00019726,2]
[372264166,1752568254342,-311.40865477,0.00019726,2]
[372264167,1752568254352,-430.92298124,0.00019726,2]
[372264168,1752568254361,-460.0,0.00019726,2]
[372264169,1752568254371,-460.0,0.00019726,2]
[372264170,1752568254380,-1000.75,0.00019726,2]
[372264171,1752568254390,-460.0,0.00019726,2]
[372264172,1752568254399,-906.02,0.00019726,2]
[372264173,1752568254409,-460.0,0.00019726,2]
[372264174,1752568254418,-460.0,0.00019726,2]
[372264175,1752568254427,-462.55391539,0.00019726,2]
[372264176,1752568254437,-460.0,0.00019726,2]
[372264177,1752568254446,-460.0,0.00019726,2]
[372264178,1752568254455,-460.0,0.00019726,2]
[372264179,1752568254464,-460.0,0.00019726,2]
[372264180,1752568254474,-460.0,0.00019726,2]
[372264181,1752568254483,-478.18,0.00019726,2]
[372264182,1752568254493,-460.0,0.00019726,2]
[372264183,1752568254503,-586.34131155,0.00019726,2]
[372264184,1752568254513,-460.0,0.00019726,2]
[372264185,1752568254524,-460.0,0.00019726,2]
[372264186,1752568254533,-152.24635668,0.00019726,2]
[372264187,1752568254543,-460.0,0.00019726,2]
[372264188,1752568254553,-460.0,0.00019726,2]
[372264189,1752568254563,-501.02,0.00019726,2]
[372264190,1752568254573,-460.0,0.00019726,2]